[Event "NY Presidents Day IM-B 2024"]
[Site "New York"]
[Date "2024.02.17"]
[Round "4.2"]
[White "Rajesh, C.S."]
[Black "Pang, Qi"]
[Result "1-0"]
[ECO "A11"]
[WhiteElo "2218"]
[BlackElo "2148"]
[Annotator "RC"]
[PlyCount "99"]
[EventDate "2024.02.14"]
[EventType "schev"]
[EventCountry "USA"]
[SourceTitle "playchess.com"]
[Source "ChessBase"]
[SourceQuality "1"]
[TimeControl "5400+30"]

1. Nf3 {[%emt 0:00:12]} d5 {[%emt 0:00:56]} 2. g3 {[%emt 0:00:06]} Nf6 {[%emt 0:00:24]} 3. Bg2 {[%emt 0:00:05]} Bf5 {[%emt 0:05:18]} 4. c4 {[%emt 0:03:40]} c6 {[%emt 0:00:21]} 5. cxd5 {[%emt 0:01:59]} cxd5 {[%emt 0:00:24]} 6. Qb3 {[%emt 0:00:03]} Qb6 {[%emt 0:03:12]} 7. Qxb6 {[%emt 0:01:03]} axb6 {[%emt 0:00:30]} 8. Nc3 {[%emt 0:00:16]} Nc6 {[%emt 0:00:57]} 9. d3 {[%emt 0:00:16]} e6 {[%emt 0:01:24]} 10. O-O {[%emt 0:02:49]} Bc5 {[%emt 0:04:46]} 11. a3 {[%emt 0:04:13]} O-O {[%emt 0:01:44]} 12. Bd2 {[%emt 0:03:05]} Rfc8 {[%emt 0:16:44]} 13. Nb5 {[%emt 0:03:13]} Nd7 {[%emt 0:04:19]} 14. Rfc1 {[%emt 0:12:37]} Bg4 {[%emt 0:16:06]} 15. Bc3 {[%emt 0:15:41]} Be7 {[%emt 0:02:36]} 16. b4 {[%emt 0:02:27]} Bxf3 {[%emt 0:02:04]} 17. Bxf3 {[%emt 0:00:22]} Na7 {[%emt 0:01:15]} 18. Nxa7 {[%emt 0:02:08]} Rxa7 {[%emt 0:00:22]} 19. Bb2 {[%emt 0:00:02]} Raa8 {[%emt 0:00:23]} 20. e4 {[%emt 0:02:30]} Bf6 {[%emt 0:00:51]} 21. d4 {[%emt 0:00:50]} Bg5 {[%emt 0:07:35]} 22. Rxc8+ {[%emt 0:00:15]} Rxc8 {[%emt 0:00:03]} 23. exd5 {[%emt 0:00:06]} Rc2 {[%emt 0:00:08]} 24. Rb1 {[%emt 0:08:49]} Nf6 {[%emt 0:00:26]} 25. h4 {[%emt 0:01:30]} Bh6 {[%emt 0:00:23]} 26. d6 {[%emt 0:08:02]} Kf8 {[%emt 0:00:15]} 27. Bxb7 {[%emt 0:00:12]} Ke8 {[%emt 0:00:16]} 28. a4 {[%emt 0:01:16]} Bd2 {[%emt 0:00:21]} 29. b5 {[%emt 0:05:50]} Bb4 {[%emt 0:02:34]} 30. Bc6+ {[%emt 0:00:44]} Kd8 {[%emt 0:00:37]} 31. d7 {[%emt 0:03:14]} Nxd7 {[%emt 0:00:36]} 32. d5 {[%emt 0:00:08]} Bc5 {[%emt 0:02:38]} 33. dxe6 {[%emt 0:01:17]} Rxf2 {[%emt 0:00:40]} 34. Kh1 {[%emt 0:00:05]} fxe6 {[%emt 0:00:05]} 35. Bxg7 {[%emt 0:00:37]} Rd2 {[%emt 0:03:02]} 36. Rf1 {[%emt 0:03:03]} Rf2 {[%emt 0:02:11]} 37. Rd1 {[%emt 0:01:15]} Rf7 {[%emt 0:00:04]} 38. Rxd7+ {[%emt 0:01:43]} Rxd7 {[%emt 0:00:03]} 39. Bxd7 {[%emt 0:00:03]} Kxd7 {[%emt 0:00:03]} 40. Be5 {[%emt 0:00:07]} h5 {[%emt 0:01:19]} 41. Kg2 {[%emt 0:00:14]} Be7 {[%emt 0:05:10]} 42. Kf3 {[%emt 0:00:15]} Ke8 {[%emt 0:00:36]} 43. Bc7 {[%emt 0:01:51]} Bc5 {[%emt 0:00:06]} 44. Kf4 {[%emt 0:00:10]} Kd7 {[%emt 0:00:35]} 45. Be5 {[%emt 0:00:11]} Be7 {[%emt 0:00:28]} 46. g4 {[%emt 0:00:58]} hxg4 {[%emt 0:00:04]} 47. h5 {[%emt 0:00:08]} Bf8 {[%emt 0:02:48]} 48. Kg5 {[%emt 0:01:54]} Be7+ {[%emt 0:02:02]} 49. Kxg4 {[%emt 0:00:13]} Bf8 {[%emt 0:00:13]} 50. Kg5 {[%emt 0:00:02]} 1-0

[Event "NY Presidents Day IM-B 2024"]
[Site "New York"]
[Date "2024.02.17"]
[Round "4.3"]
[White "Sun, Ryan"]
[Black "Graif, William"]
[Result "1/2-1/2"]
[ECO "D94"]
[WhiteElo "2217"]
[BlackElo "2302"]
[Annotator "TA"]
[PlyCount "128"]
[EventDate "2024.02.14"]
[EventType "schev"]
[EventCountry "USA"]
[SourceTitle "playchess.com"]
[Source "ChessBase"]
[SourceQuality "1"]
[TimeControl "5400+30"]

{[%evp 26,128,0,0,8,-31,-31,-35,-16,-24,0,0,0,-74,-85,-79,-72,-72,-75,-98,-91,-95,-60,-118,-118,-145,-152,-147,-122,-155,-165,-160,-160,-160,-160,-161,-165,-170,-170,-170,-41,-41,-40,-40,-40,-40,-40,-40,0,-40,-40,-40,-40,-40,-40,-40,-40,-40,-40,-67,-67,-87,-87,-87,-87,-87,-87,-87,-60,-116,-122,-127,-87,-449,-152,-172,-87,-87,-87,-87,-87,-87,-87,-87,-87,-87,-87,-120,-120,-120,-120,-120,0,0,0,0,0,0,0,0,0,0,0,0,0]} 1. Nf3 {[%emt 0:00:03]} c5 {[%emt 0:01:38]} 2. c4 {[%emt 0:00:06]} g6 {[%emt 0:00:13]} 3. Nc3 {[%emt 0:00:06]} Bg7 {[%emt 0:00:15]} 4. e3 {[%emt 0:01:09]} Nf6 {[%emt 0:00:24]} 5. d4 {[%emt 0:01:28]} O-O {[%emt 0:00:12]} 6. Be2 {[%emt 0:01:38]} cxd4 {[%emt 0:00:11]} 7. Nxd4 {[%emt 0:00:10]} d5 {[%emt 0:01:10]} 8. O-O {[%emt 0:00:59]} dxc4 {[%emt 0:03:28]} 9. Bxc4 {[%emt 0:00:21]} a6 {[%emt 0:00:49]} 10. Be2 {[%emt 0:03:07]} Qc7 {[%emt 0:18:10]} 11. Bd2 {[%emt 0:02:53]} e5 {[%emt 0:00:31]} 12. Nb3 {[%emt 0:04:55]} Nc6 {[%emt 0:09:40]} 13. Bf3 {[%emt 0:07:52]} Rd8 {[%emt 0:08:29]} 14. Rc1 {[%emt 0:04:31]} Bf5 {[%emt 0:02:48]} 15. Nc5 {[%emt 0:05:54]} Bf8 {[%emt 0:13:14]} 16. N3e4 {[%emt 0:05:26]} Nxe4 {[%emt 0:00:49]} 17. Nxe4 {[%emt 0:00:14]} Bxe4 {[%emt 0:00:34]} 18. Bxe4 {[%emt 0:00:07]} Bb4 {[%emt 0:00:29]} 19. Bxb4 {[%emt 0:07:57]} (19. Rc2 $11) 19... Rxd1 $17 {[%emt 0:00:08]} 20. Rfxd1 {[%emt 0:00:05]} Rd8 {[%emt 0:00:31]} 21. Bd5 {[%emt 0:00:40]} a5 {[%emt 0:16:37]} 22. Ba3 {[%emt 0:13:26]} Qb6 {[%emt 0:01:19]} 23. h3 {[%emt 0:01:37]} a4 {[%emt 0:06:19]} 24. Rc2 {[%emt 0:10:34]} (24. Bc4 $15) 24... Kg7 $17 {[%emt 0:01:30]} 25. Rcd2 {[%emt 0:01:23]} Qa5 {[%emt 0:01:00]} 26. e4 {[%emt 0:01:53]} Nd4 {[%emt 0:00:44]} 27. f4 {[%emt 0:00:51]} Nb5 {[%emt 0:01:30]} 28. fxe5 {[%emt 0:02:09]} Nxa3 {[%emt 0:02:24]} 29. bxa3 {[%emt 0:00:02]} Rd7 {[%emt 0:00:37]} 30. Rf2 {[%emt 0:00:43]} Kh6 {[%emt 0:03:33]} 31. Rdf1 {[%emt 0:01:14]} Qc3 {[%emt 0:02:48]} 32. Rxf7 {[%emt 0:04:24]} Rxf7 {[%emt 0:00:54]} ({Better is} 32... Qd4+ $1 $19 33. Kh1 Rxf7 34. Rxf7 Qa1+ (34... Qxe5 35. Rxb7 Qg3 36. Rf7 $17) 35. Kh2 Qxe5+ 36. Kg1 b6) 33. Rxf7 $15 {[%emt 0:00:07]} Qd4+ {[%emt 0:01:22]} (33... Qxa3 34. e6 $14 (34. Rxb7 Qe3+ 35. Kh2 Qf4+ 36. g3 Qxe5 $15)) 34. Kf1 $1 {[%emt 0:00:30]} Qa1+ {[%emt 0:01:01]} 35. Kf2 {[%emt 0:00:24]} Qb2+ {[%emt 0:00:27]} (35... Qxe5 36. Rxb7 Qd4+ 37. Kg3 $17) 36. Kg1 {[%emt 0:00:20]} Qd4+ {[%emt 0:00:42]} (36... Qxa3 37. e6 $14 (37. Rxb7 Qc1+ 38. Kh2 Qf4+ 39. g3 Qxe5 $15)) 37. Kf1 $1 {[%emt 0:00:05]} Qxe5 {[%emt 0:00:49]} 38. Rxb7 {[%emt 0:00:10]} Qc3 {[%emt 0:00:30]} 39. Rf7 {[%emt 0:00:43]} Qxa3 {[%emt 0:00:13]} 40. Kg1 {[%emt 0:00:08]} Qc3 {[%emt 0:00:35]} 41. Rf3 {[%emt 0:00:11]} Qe1+ {[%emt 0:00:33]} 42. Kh2 {[%emt 0:00:14]} Kg5 {[%emt 0:00:34]} 43. Rf7 {[%emt 0:00:46]} h5 $1 {[%emt 0:00:19]} 44. Rf3 {[%emt 0:00:08]} Kh6 {[%emt 0:01:07]} 45. Rf6 {[%emt 0:00:54]} Qc3 {[%emt 0:00:47]} 46. Rf3 {[%emt 0:00:26]} Qe5+ {[%emt 0:00:04]} 47. Kh1 {[%emt 0:00:08]} (47. Kg1 $1 $15) 47... g5 $17 {[%emt 0:00:14]} 48. Rf5 {[%emt 0:00:02]} Qc3 {[%emt 0:00:46]} 49. Rf3 $2 {[%emt 0:12:17][%mdl 8192]} (49. Kh2 $17 {is tougher.}) 49... Qa1+ $2 {[%emt 0:00:28]} (49... Qe1+ $1 $19 50. Kh2 g4 51. hxg4 hxg4) 50. Kh2 $17 {[%emt 0:00:02] [#]} Qe5+ {[%emt 0:00:56]} ({Black should play} 50... Qe1 $1 $19 51. Rf6+ Kg7) 51. g3 $17 {[%emt 0:01:33]} h4 {[%emt 0:00:34]} 52. Kg2 {[%emt 0:00:08]} Qb2+ {[%emt 0:00:42]} 53. Rf2 {[%emt 0:00:46]} a3 {[%emt 0:00:29]} 54. gxh4 {[%emt 0:01:16]} ({But not} 54. Rxb2 $2 axb2 55. gxh4 gxh4 $19 (55... b1=B $2 56. hxg5+ Kxg5 57. Kg3 $18) (55... b1=Q $2 56. e5 $19)) 54... gxh4 {[%emt 0:00:07]} 55. Be6 {[%emt 0:00:07]} ({Not} 55. Rxb2 $2 axb2 56. Kf3 b1=Q $19 (56... b1=B $2 {perishes.} 57. a4 $18)) 55... Qe5 {[%emt 0:00:40]} 56. Bg4 {[%emt 0:00:59]} Qxe4+ {[%emt 0:00:16]} 57. Kg1 {[%emt 0:00:07]} Kg5 {[%emt 0:00:21]} 58. Rf5+ {[%emt 0:00:22] [#]} Qxf5 {[%emt 0:00:46]} (58... Kg6 $1 $17 {Strongly threatening ...Qb1+.} 59. Rf2 Qe1+ 60. Kg2 Qb4) 59. Bxf5 $11 {[%emt 0:00:05]} Kxf5 {[%emt 0:00:02]} 60. Kf1 {[%emt 0:00:05]} Ke5 {[%emt 0:00:25]} (60... Kf4 $5 61. Kf2 $8 Ke5 $11) 61. Ke1 $1 {[%emt 0:00:27]} Kd5 {[%emt 0:00:39]} 62. Kd1 {[%emt 0:00:14]} Ke5 {[%emt 0:00:29]} (62... Kd4 $5 63. Kd2 $8 Ke5 $11) 63. Ke1 $1 {[%emt 0:00:07]} Kd5 {[%emt 0:00:39]} (63... Ke4 $5 64. Ke2 $8 Kd4 $11) 64. Kd1 {[%emt 0:00:04]} Ke5 {[%emt 0:01:56]} 1/2-1/2

[Event "NY Presidents Day IM-B 2024"]
[Site "New York"]
[Date "2024.02.17"]
[Round "4.4"]
[White "Xu, Grant"]
[Black "Bortnyk, Mykola"]
[Result "0-1"]
[ECO "B22"]
[WhiteElo "2313"]
[BlackElo "2421"]
[Annotator "TA"]
[PlyCount "108"]
[EventDate "2024.02.14"]
[EventType "schev"]
[EventCountry "USA"]
[SourceTitle "playchess.com"]
[Source "ChessBase"]
[SourceQuality "1"]
[TimeControl "5400+30"]

{[%evp 9,108,11,25,0,19,16,0,-1,-7,-27,39,32,54,58,35,18,78,64,83,79,61,0,0,0,0,0,0,-31,-2,-17,-19,-20,-16,-7,-5,-13,-14,-16,0,-15,-25,-19,-12,-32,-32,-32,-13,-15,-21,-32,-14,-73,-73,-117,-73,-74,-75,-87,-91,-106,-116,-99,-83,-338,-329,-473,-439,-391,-406,-829,-829,-829,-829,-6111,-4133,-29974,-29975,-29977,-29978,-29978,-29979,-29982,-29983,-29983,-29984,-29985,-29986,-29986,-29987,-29987,-29988,-29988,-29985,-29985,-29986,-29986,-29983,-29983,-29984,-29984,-29985]} 1. e4 {[%emt 0:00:03]} c5 {[%emt 0:11:03]} 2. c3 {[%emt 0:00:19]} d5 {[%emt 0:00:25]} 3. exd5 {[%emt 0:00:05]} Qxd5 {[%emt 0:00:04]} 4. d4 {[%emt 0:00:07]} g6 {[%emt 0:00:47]} 5. Be3 {[%emt 0:05:27]} Nf6 {[%emt 0:03:21]} 6. dxc5 {[%emt 0:12:21]} (6. Na3 $5) 6... Qxd1+ {[%emt 0:00:24]} 7. Kxd1 {[%emt 0:00:02]} Ng4 {[%emt 0:01:47]} 8. Bb5+ {[%emt 0:00:36] The position is equal.} Bd7 {[%emt 0:00:25]} 9. Na3 {[%emt 0:01:52]} a5 {[%emt 0:01:09]} (9... e6 $11) 10. Nf3 $14 {[%emt 0:03:04]} e5 {[%emt 0:03:58] Prevents Bd4.} 11. Kc2 {[%emt 0:09:32]} Nxe3+ {[%emt 0:00:57]} 12. fxe3 {[%emt 0:00:03]} f6 {[%emt 0:00:17]} (12... Nc6 $11) 13. Bxd7+ $16 {[%emt 0:00:33]} Nxd7 {[%emt 0:02:54]} 14. Nb5 {[%emt 0:00:13]} Rc8 {[%emt 0:00:35] Against Nc7+} 15. Nd6+ {[%emt 0:04:18]} (15. b4 $14) 15... Bxd6 $11 {[%emt 0:00:06]} 16. cxd6 {[%emt 0:00:06]} Kf7 {[%emt 0:01:08]} 17. Rad1 {[%emt 0:02:18]} Ke6 {[%emt 0:00:31]} 18. h4 {[%emt 0:03:20]} Nb6 {[%emt 0:02:16]} 19. e4 {[%emt 0:09:05]} Nc4 {[%emt 0:03:42] Hoping for ...Ne3+.} 20. d7 {[%emt 0:01:05]} Rcd8 {[%emt 0:00:02]} 21. Rhe1 {[%emt 0:02:31] Repels Ne3+} Rxd7 {[%emt 0:04:39]} 22. Rxd7 {[%emt 0:01:57]} Kxd7 {[%emt 0:00:01][%mdl 4096] Endgame. KRN-KRN} 23. g4 {[%emt 0:02:42]} h5 {[%emt 0:02:24]} 24. gxh5 {[%emt 0:02:09]} Rxh5 {[%emt 0:01:58]} 25. b3 {[%emt 0:01:36]} Nd6 {[%emt 0:00:30]} 26. c4 {[%emt 0:00:30]} b6 {[%emt 0:01:50]} 27. Kd3 {[%emt 0:00:57]} Ke6 {[%emt 0:00:15]} 28. Rg1 {[%emt 0:00:25]} Rh6 {[%emt 0:00:13]} 29. Re1 {[%emt 0:06:10]} Nf7 {[%emt 0:03:57]} 30. c5 {[%emt 0:02:04]} bxc5 $17 {[%emt 0:00:05]} 31. Kc4 {[%emt 0:00:15]} g5 {[%emt 0:00:18]} 32. hxg5 {[%emt 0:01:51]} fxg5 {[%emt 0:00:07]} 33. Kxc5 {[%emt 0:04:57]} g4 {[%emt 0:00:23]} 34. Nd2 {[%emt 0:00:28]} Rh2 {[%emt 0:00:13]} 35. Nc4 {[%emt 0:00:43]} Ng5 {[%emt 0:01:18] Threatens to win with ...g3. Black is more active.} (35... Rxa2 $6 36. Rg1 $11) 36. Ne3 $2 {[%emt 0:06:25][%mdl 8192] Loses the game.} (36. Rg1 $17 {is a better defense.} Nxe4+ (36... Rxa2 37. Rxg4 Nh7 38. Rg3 $11) 37. Kb6) 36... g3 $19 {[%emt 0:02:22]} ({Weaker is} 36... Rxa2 37. Nxg4 a4 38. Kb4 $15) (36... Nxe4+ 37. Kb6 g3 (37... Rxa2 38. Nxg4 Kf5 39. Ne3+ Kf6 40. Nc4 $11) (37... Nf6 $2 38. a4 $19) 38. Ng4 $19) 37. Rg1 {[%emt 0:00:30]} (37. a3 $142) 37... Nxe4+ {[%emt 0:00:14]} 38. Kc4 {[%emt 0:00:55]} Rd2 {[%emt 0:04:47]} ({Less strong is} 38... Rxa2 39. Kd3 $17) 39. Rg2 {[%emt 0:10:14]} (39. Ra1 $142) 39... Rxg2 {[%emt 0:07:29]} 40. Nxg2 {[%emt 0:00:02] KN-KN} Nf6 {[%emt 0:00:08]} 41. b4 {[%emt 0:04:16]} axb4 {[%emt 0:00:14]} 42. Kxb4 {[%emt 0:00:02]} Nd5+ {[%emt 0:00:07] Black mates.} 43. Kc4 {[%emt 0:01:20]} Nf4 {[%emt 0:00:13]} 44. Nh4 {[%emt 0:00:41]} g2 {[%emt 0:00:17]} 45. Nf3 {[%emt 0:00:11]} Nh3 {[%emt 0:00:43]} 46. a4 {[%emt 0:00:20]} Kd6 {[%emt 0:00:44]} ({And not} 46... g1=R 47. Nxg1 Nxg1 48. a5 $11) 47. Kd3 {[%emt 0:01:47]} Kd5 {[%emt 0:00:09]} 48. Ke2 {[%emt 0:02:33]} e4 {[%emt 0:00:07]} 49. Ng1 {[%emt 0:00:05]} Nxg1+ {[%emt 0:00:07]} 50. Kf2 {[%emt 0:00:01]} Nf3 {[%emt 0:00:41]} 51. Kxg2 {[%emt 0:00:02]} Kc4 {[%emt 0:00:10]} 52. a5 {[%emt 0:00:13]} Kb5 {[%emt 0:00:03]} 53. Kg3 {[%emt 0:00:06]} Kxa5 {[%emt 0:00:05]} 54. Kf4 {[%emt 0:00:04] [#]} Ng5 $1 {[%emt 0:00:03] Weighted Error Value: White=0.57/Black=0.09 (flawless) .  Loses game:     	White=1     	---        Mistake:       	White=4     	Black=2      Inaccurate:     	White=2     	Black=2      OK:         	White=10    	Black=13     Best:        	White=2     	Black=5} 0-1

[Event "NY Presidents Day IM-B 2024"]
[Site "New York"]
[Date "2024.02.17"]
[Round "4.5"]
[White "Poliannikov, Danila"]
[Black "Lima, Darcy"]
[Result "1-0"]
[ECO "C64"]
[WhiteElo "2282"]
[BlackElo "2370"]
[Annotator "TA"]
[PlyCount "87"]
[EventDate "2024.02.14"]
[EventType "schev"]
[EventCountry "USA"]
[SourceTitle "playchess.com"]
[Source "ChessBase"]
[SourceQuality "1"]
[TimeControl "5400+30"]

{[%evp 10,87,66,43,38,44,35,37,32,30,37,39,31,29,33,26,39,27,59,38,63,59,74,69,79,76,96,94,86,92,148,119,140,118,142,96,101,81,111,70,91,64,78,88,96,96,99,92,132,134,126,129,131,87,154,155,154,153,195,155,508,499,496,285,453,448,364,399,533,471,462,360,333,320,1077,1074,1009,894,2423,2219]} 1. e4 {[%emt 0:00:02]} e5 {[%emt 0:00:24]} 2. Nf3 {[%emt 0:00:05]} Nc6 {[%emt 0:00:14]} 3. Bb5 {[%emt 0:00:04]} a6 {[%emt 0:00:06]} 4. Ba4 {[%emt 0:00:02]} Bc5 {[%emt 0:00:17]} 5. O-O {[%emt 0:01:41]} Nge7 {[%emt 0:00:29]} 6. c3 {[%emt 0:03:57]} (6. Nxe5 $5 Nxe5 7. d4 $14) 6... Ng6 {[%emt 0:00:24]} 7. d4 {[%emt 0:04:21]} Ba7 {[%emt 0:00:12]} 8. Bg5 {[%emt 0:01:17]} f6 {[%emt 0:00:12] White is slightly better.} 9. Be3 {[%emt 0:00:28]} O-O {[%emt 0:00:16]} 10. Nbd2 {[%emt 0:02:23][%cal Bb1d2,Bd2f1,Bf1g3][%mdl 32]} d6 {[%emt 0:00:08]} 11. Re1 {[%emt 0:01:26]} Kh8 {[%emt 0:00:21]} 12. h3 {[%emt 0:03:41]} Bd7 {[%emt 0:01:48]} 13. Nf1 {[%emt 0:03:15]} Qe8 {[%emt 0:02:20][%cal Oc6d4]} 14. Bc2 {[%emt 0:02:47]} Nd8 {[%emt 0:00:25]} 15. Ng3 {[%emt 0:04:48]} Ne7 {[%emt 0:07:37]} 16. b4 {[%emt 0:01:45]} Nf7 {[%emt 0:03:41]} 17. a4 {[%emt 0:03:58][%cal Ba2a4,Ba4a5][%mdl 32]} c6 {[%emt 0:01:35]} 18. a5 {[%emt 0:04:40]} Be6 {[%emt 0:03:57]} 19. Qd3 {[%emt 0:09:14]} g6 {[%emt 0:00:08]} (19... Qc8 $142) 20. Qe2 {[%emt 0:01:16]} Bb8 {[%emt 0:05:11][%cal Ba7b8,Bb8c7,Bc7d8][%mdl 32]} 21. c4 {[%emt 0:03:37]} Bc7 {[%emt 0:01:58]} 22. d5 {[%emt 0:06:19]} (22. Bb3 $142) 22... Bd7 $16 {[%emt 0:02:07]} 23. Nh4 {[%emt 0:04:51]} cxd5 {[%emt 0:18:55]} 24. cxd5 {[%emt 0:00:58]} Nc8 {[%emt 0:00:06][%cal Be7c8,Bc8a7,Ba7b5][%mdl 32]} 25. Rac1 {[%emt 0:03:13]} Na7 {[%emt 0:00:39]} 26. Bd3 {[%emt 0:00:26]} Bd8 {[%emt 0:00:06]} 27. Nf3 {[%emt 0:00:09] White is much more active.} Nb5 {[%emt 0:03:41]} 28. Nd2 {[%emt 0:00:31]} Rc8 {[%emt 0:02:25]} 29. Rxc8 {[%emt 0:01:48]} Bxc8 {[%emt 0:00:02]} 30. Rc1 {[%emt 0:00:17] Against Nc3} Bd7 {[%emt 0:01:03]} 31. Nc4 $36 {[%emt 0:00:31][%mdl 2048] White is on the roll.} Kg7 {[%emt 0:01:15]} ({Black should try} 31... Qe7 32. Nb6 Nd4 33. Bxd4 exd4 34. Nxd7 Qxd7) 32. Nb6 {[%emt 0:04:45]} Bxb6 {[%emt 0:01:47]} 33. axb6 {[%emt 0:00:09]} Nd8 {[%emt 0:04:48]} 34. h4 {[%emt 0:08:14][%cal Bh3h4,Bh4h5][%mdl 32]} f5 $2 {[%emt 0:05:18] [#] Loses the game.} (34... Kh8 $16 {is more resistant.} 35. Qd2 h5 36. Bxb5 Bxb5) 35. exf5 $18 {[%emt 0:00:49]} gxf5 {[%emt 0:00:01]} 36. f4 {[%emt 0:06:08]} ({Don't do} 36. Nh5+ Kh8 37. Bh6 Nd4) (36. Rc7 $142 {[%cal Od3f5] Strongly threatening Bxf5!} Nxc7 37. bxc7) 36... Qg6 {[%emt 0:01:43]} (36... Kg8 {was worth a try.} 37. h5 Qf7 38. fxe5 dxe5) 37. Qf2 {[%emt 0:00:48]} Kh8 {[%emt 0:02:07]} 38. h5 {[%emt 0:04:40]} Qf7 {[%emt 0:01:14]} 39. fxe5 {[%emt 0:01:36] Black is weak on the dark squares} Qxd5 {[%emt 0:07:03]} 40. Bxb5 {[%emt 0:02:37]} ({Less strong is} 40. Bxf5 dxe5 41. Be4 Qg8 $18) 40... axb5 {[%emt 0:02:27]} 41. exd6 {[%emt 0:00:24]} Bc6 $2 {[%emt 0:00:33] [#]} (41... Rf7 42. Ra1 f4) 42. Bd4+ {[%emt 0:00:43] White is clearly winning.} Kg8 {[%emt 0:00:05]} 43. Rc5 {[%emt 0:00:22]} Qxd6 {[%emt 0:00:41]} 44. Nxf5 {[%emt 0:01:23] Weighted Error Value: White=0.22 (precise) /Black=0.41.  Loses game:     	---       	Black=1      Mistake:       	White=2     	Black=4      Inaccurate:     	White=1     	Black=4      OK:         	White=13    	Black=9      Best:        	White=5     	Black=2} 1-0